fUST/lending_fUST_20260208
["ID","MTS","AMOUNT","RATE_DAILY","PERIOD"]
[404728108,1770496396238,1000.0,0.00013821,2]
[404728111,1770496513853,500.0,0.00013273,2]
[404728112,1770496515087,500.0,0.00013273,2]
[404728113,1770496515120,500.0,0.00014368,2]
[404728114,1770496515155,1000.0,0.00013821,2]
[404728115,1770496516863,500.0,0.00013699,2]
[404728116,1770496518618,500.0,0.00013273,2]
[404728117,1770496523731,500.0,0.00013273,2]
[404728118,1770496524917,619.87865925,0.00013273,2]
[404728119,1770496532754,300.0,0.00013673,2]
[404728120,1770496536251,500.96196004,0.00013699,2]
[404728121,1770496536864,500.0,0.00013699,2]
[404728122,1770496542031,500.0,0.00013273,2]
[404728123,1770496592661,498.71075105,0.00013273,2]
[404728125,1770496623838,301.61574,0.00013273,2]
[404728126,1770496630091,500.0,0.00013699,2]
[404728127,1770496639473,300.0,0.00013673,2]
[404728263,1770496743985,451.64255287,0.00013273,2]
[404728264,1770496744699,339.05134237,0.00013699,2]
[404728265,1770496750493,500.0,0.00013699,2]
[404728266,1770496751592,500.0,0.00013273,2]
[404728267,1770496751640,725.35356092,0.00013821,2]
[404728269,1770496755409,500.0,0.00013273,2]
[404728270,1770496755443,524.72178825,0.00013821,2]
[404728271,1770496804235,498.71075105,0.00013273,2]
[404728272,1770496814487,500.0,0.00013699,2]
[404728273,1770496814513,500.0,0.00013699,2]
[404728274,1770496814553,500.0,0.00014247,2]
[404728275,1770496817132,500.0,0.00013273,2]
[404728276,1770496817186,220.23495117,0.00013821,2]
[404728277,1770496867819,500.0,0.00013273,2]
[404728278,1770496871655,500.0,0.00013699,2]
[404728279,1770496872269,500.0,0.00013699,2]
[404728280,1770496923247,508.16028706,0.00013699,2]
[404728281,1770496924627,175.69914693,0.00013273,2]
[404728282,1770496925225,500.0,0.00013273,2]
[404728283,1770496926109,500.0,0.00013273,2]
[404728284,1770496927637,500.0,0.00013699,2]
[404728285,1770496932589,500.0,0.00013699,2]
[404728286,1770496932726,504.37145005,0.00013699,2]
[404728287,1770496934145,315.93334269,0.00013699,2]
[404728328,1770496984302,500.0,0.00013273,2]
[404728329,1770496986003,180.50448586,0.00013699,2]
[404728330,1770496989836,314.14228189,0.00013273,2]
[404728332,1770497014854,5000.0,0.000159,2]
[404728333,1770497022971,5000.0,0.000159,2]
[404728334,1770497037798,5000.0,0.000159,2]
[404728335,1770497045859,5000.0,0.000159,2]
[404728336,1770497060713,5000.0,0.000159,2]
[404728337,1770497068472,2397.11011949,0.000159,2]
[404728338,1770497084211,5000.0,0.000159,2]
[404728339,1770497106101,5000.0,0.000159,2]
[404728340,1770497109425,500.0,0.00013699,2]
[404728347,1770497113190,503.44585803,0.00013699,2]
[404728348,1770497174327,500.0,0.00013273,2]
[404728349,1770497174483,500.0,0.00013699,2]
[404728350,1770497191225,500.0,0.00013699,2]
[404728393,1770497283261,500.0,0.00013273,2]
[404728394,1770497343356,367.49330914,0.00013273,2]
[404728403,1770497431861,-656.0,0.00016235,2]
[404728405,1770497431871,-150.0,0.00016235,2]
[404728407,1770497431881,-300.0,0.00016436,2]
[404728409,1770497431890,-300.0,0.00016436,2]
[404728411,1770497431899,-300.0,0.00016436,2]
[404728412,1770497431909,-300.0,0.00016436,2]
[404728415,1770497431919,-218.20858867,0.00016436,2]
[404728417,1770497431931,-981.79141133,0.00016436,2]
[404728419,1770497431940,-12326.95920268,0.00016437,2]
[404728421,1770497431949,-150.40630044,0.00016438,2]
[404728423,1770497431959,-300.0,0.00016766,2]
[404728424,1770497431968,-300.0,0.00016766,2]
[404728425,1770497431978,-300.0,0.00016766,2]
[404728426,1770497431988,-300.0,0.00016766,2]
[404728427,1770497431998,-300.0,0.00016766,2]
[404728428,1770497432007,-300.0,0.00016766,2]
[404728429,1770497432018,-300.0,0.00016766,2]
[404728430,1770497432030,-300.0,0.00016766,2]
[404728431,1770497432039,-300.0,0.00016766,2]
[404728432,1770497432048,-300.0,0.00016766,2]
[404728433,1770497432058,-300.0,0.00016766,2]
[404728434,1770497432067,-300.0,0.00016766,2]
[404728435,1770497432077,-300.0,0.00016766,2]
[404728436,1770497432087,-300.0,0.00016766,2]
[404728437,1770497432096,-0.23010121,0.00016766,2]
[404728438,1770497432107,-299.76989879,0.00016766,2]
[404728439,1770497432118,-600.0,0.000171,2]
[404728440,1770497432128,-420.0,0.00017962,2]
[404728441,1770497432138,-420.0,0.00017962,2]
[404728442,1770497432150,-300.0,0.00017962,2]
[404728443,1770497432159,-327.0,0.00017962,2]
[404728444,1770497432170,-808.23010121,0.00018052,2]
[404729076,1770497446195,-871.76989879,0.00018052,2]
[404729078,1770497446206,-136.88405378,0.00018235,2]
[404730886,1770497464787,500.0,0.00013273,2]
[404734977,1770497525108,500.0,0.00013273,2]
[404734983,1770497767729,500.0,0.00013273,2]
[404734984,1770497767789,793.66178108,0.00013821,2]
[404734990,1770498063651,500.0,0.00013699,2]
[404734991,1770498063700,501.44248155,0.00013699,2]
[404734992,1770498063732,500.5515535,0.00013273,2]
[404734993,1770498067505,500.0,0.00013699,2]
[404734994,1770498073846,600.0,0.00014221,2]
[404734995,1770498073905,300.0,0.00014768,2]
[404734996,1770498073960,300.0,0.00013673,2]
[404734998,1770498079513,500.0,0.00013699,2]
[404734999,1770498079702,500.0,0.00014247,2]
[404735000,1770498080344,500.0,0.00013273,2]
[404735001,1770498080387,1000.0,0.00013821,2]
[404735002,1770498083015,608.27543567,0.00013699,2]
[404735003,1770498085172,500.0,0.00013699,2]
[404735004,1770498085206,1000.0,0.00014247,2]
[404735005,1770498085279,1000.0,0.00014795,2]
[404735006,1770498085508,500.0,0.00013273,2]
[404735007,1770498085560,500.0,0.00013821,2]
[404735008,1770498185625,511.64534676,0.00013699,2]
[404735009,1770498303838,500.0,0.00013699,2]
[404735010,1770498424268,500.0,0.00013699,2]
[404735011,1770498424331,160.47481295,0.00013699,2]
[404735013,1770498606254,500.0,0.00013273,2]
[404735014,1770498606285,724.94157864,0.00013821,2]
[404735045,1770498632081,-492.434724,0.00017169,2]
[404735642,1770498638146,-4507.565276,0.00017169,2]
[404735644,1770498638157,-675.0,0.00017342,2]
[404735646,1770498638167,-150.0,0.00017429,2]
[404735648,1770498638177,-192.0,0.00017516,2]
[404735650,1770498638188,-2392.81510353,0.00017517,2]
[404735652,1770498638201,-703.17596632,0.00017517,2]
[404735877,1770498640399,-1463.19035018,0.00017517,2]
[404736283,1770498644672,-1000.0,0.00017517,2]
[404736373,1770498645521,-5857.05987909,0.00017517,2]
[404736375,1770498645530,-300.0,0.00018506,2]
[404736377,1770498645540,-300.0,0.00018506,2]
[404736379,1770498645550,-300.0,0.00018506,2]
[404736381,1770498645559,-300.0,0.00018506,2]
[404736383,1770498645569,-300.0,0.00018506,2]
[404736385,1770498645578,-300.0,0.00018506,2]
[404736388,1770498645588,-300.0,0.00018506,2]
[404736389,1770498645598,-300.0,0.00018506,2]
[404736391,1770498645607,-300.0,0.00018506,2]
[404736393,1770498645617,-300.0,0.00018506,2]
[404736395,1770498645628,-300.0,0.00018506,2]
[404736397,1770498645637,-300.0,0.00018506,2]
[404736399,1770498645647,-300.0,0.00018506,2]
[404736401,1770498645656,-300.0,0.00018506,2]
[404736403,1770498645665,-300.0,0.00018506,2]
[404736405,1770498645675,-650.02727789,0.00018506,2]
[404736407,1770498645684,-177.0,0.00019429,2]
[404736409,1770498645696,-1000.0,0.00019839,2]
[404736411,1770498645705,-167.74609066,0.00021003,2]
[404736413,1770498645714,-98.19115039,0.00021429,2]
[404736484,1770498646120,-105.80884961,0.00021429,2]
[404736487,1770498646130,-206.851088,0.00021436,2]
[404736490,1770498646139,-283.66714503,0.00022108,2]
[404736493,1770498646149,-503.79284958,0.00022108,2]
[404736495,1770498646158,-1001.65,0.000231,7]
[404736497,1770498646167,-196.15027148,0.00023124,2]
[404736499,1770498646177,-231.0,0.00023429,2]
[404736501,1770498646186,-500.0,0.00023515,2]
[404736503,1770498646196,-163.77248079,0.00023515,2]
[404736505,1770498646206,-500.0,0.00023515,2]
[404736507,1770498646215,-500.0,0.00023515,2]
[404736509,1770498646224,-500.0,0.00023515,2]
[404736511,1770498646236,-770.8083547,0.00023606,2]
[404736513,1770498646246,-256.71326657,0.0002543,2]
[404736518,1770498646283,-4121.57855089,0.00017342,2]
[404738263,1770498664957,500.0,0.00013699,2]
[404738270,1770498665017,339.85642721,0.00014247,2]
[404738344,1770498665901,500.0,0.00013699,2]
[404742067,1770498725548,500.0,0.00013699,2]
[404742069,1770498781502,185.68069927,0.00028381,120]
[404742071,1770498783594,500.0,0.00013273,2]
[404742072,1770498783658,464.10676166,0.00013821,2]
[404742078,1770498904129,535.89323834,0.00013273,2]
[404742080,1770499029389,278.80286206,0.00013273,2]
[404742081,1770499036721,206.32990251,0.00013273,2]
[404742082,1770499036806,500.0,0.00013699,2]
[404742083,1770499036863,440.91853521,0.00014247,2]
[404742092,1770499268411,275.05842136,0.00013273,2]
[404742093,1770499270581,500.0,0.00013273,2]
[404742100,1770499570544,500.0,0.00013273,2]
[404742112,1770499816243,500.0,0.00013273,2]
[404743451,1770499846258,-250.0,0.00016652,2]
[404743453,1770499846272,-1000.0,0.00016652,2]
[404744060,1770499865532,500.0,0.00013273,2]
[404744066,1770499881852,-1027.52162127,0.00016652,2]
[404744067,1770499926001,500.0,0.00013273,2]
[404744068,1770499927811,500.0,0.00013699,2]
[404744069,1770499930703,500.0,0.00013273,2]
[404744070,1770499930761,1000.0,0.00013821,2]
[404744080,1770499989094,500.0,0.00013699,2]
[404744081,1770499989768,300.0,0.00013673,2]
[404744082,1770500047017,500.0,0.00013699,2]
[404744083,1770500047394,500.0,0.00013699,2]
[404744084,1770500103211,500.0,0.00013273,2]
[404744085,1770500107254,500.0,0.00013699,2]
[404744086,1770500107859,500.0,0.00013273,2]
[404744087,1770500118085,191.11703376,0.00013699,2]
[404744088,1770500124263,500.0,0.00013699,2]
[404744089,1770500126116,500.0,0.00013273,2]
[404744090,1770500126174,1000.0,0.00013821,2]
[404744092,1770500171514,509.02033208,0.00013699,2]
[404744093,1770500179342,500.0,0.00013699,2]
[404744094,1770500186735,884.59412593,0.000159,2]
[404744095,1770500237429,500.0,0.00013699,2]
[404744096,1770500238549,500.0,0.00013273,2]
[404744097,1770500238606,1000.0,0.00013821,2]
[404744098,1770500356133,500.0,0.00013699,2]
[404744099,1770500371209,5000.0,0.000159,2]
[404744100,1770500407748,500.0,0.00013273,2]
[404744101,1770500407797,501.78460481,0.00013821,2]
[404744102,1770500416135,500.0,0.00013699,2]
[404744103,1770500416190,500.0,0.00014247,2]
[404744104,1770500416393,500.0,0.00013273,2]
[404744105,1770500416447,1000.0,0.00013821,2]
[404744106,1770500416502,443.842022,0.00014368,2]
[404744107,1770500463741,500.0,0.00013699,2]
[404744108,1770500466387,500.0,0.00013699,2]
[404744109,1770500467711,511.85365811,0.00013699,2]
[404744110,1770500482419,500.0,0.00013699,2]
[404744111,1770500529666,500.0,0.00013699,2]
[404744113,1770500584098,500.0,0.00013699,2]
[404744114,1770500591330,500.0,0.00013699,2]
[404744117,1770500703973,500.0,0.00013699,2]
[404744118,1770500707643,500.0,0.00013699,2]
[404744119,1770500727808,500.0,0.00013699,2]
[404744120,1770500727889,500.0,0.00014247,2]
[404744121,1770500730838,412.64967482,0.00013699,2]
[404744122,1770500765023,500.0,0.00013699,2]
[404744123,1770500766924,500.0,0.00013273,2]
[404744124,1770500766986,1000.0,0.00013821,2]
[404744125,1770500768038,500.6948387,0.00013699,2]
[404744126,1770500772172,500.0,0.00013273,2]
[404744127,1770500772371,500.0,0.00013821,2]
[404744128,1770500779473,5000.0,0.000159,2]
[404744132,1770501009558,500.0,0.00013699,2]
[404744133,1770501009616,500.0,0.00014247,2]
[404744160,1770501031507,-809.67449951,0.00016076,2]
[404744167,1770501031566,-962.90483742,0.00016076,2]
[404744168,1770501031577,-564.78544263,0.00016076,2]
[404744171,1770501031589,-1249.84721957,0.00016076,2]
[404744174,1770501031601,-560.14732194,0.00016076,2]
[404744783,1770501045514,-852.64067893,0.00016076,2]
[404744785,1770501045524,-653.0,0.00016076,2]
[404744787,1770501045533,-150.0,0.00016241,2]
[404744789,1770501045543,-1922.94868022,0.00016244,2]
[404745949,1770501064583,500.0,0.00013699,2]
[404745950,1770501064675,548.35744713,0.00013273,2]
[404745952,1770501125337,500.0,0.00013699,2]
[404745953,1770501127133,326.45991419,0.00013699,2]
[404745954,1770501127225,500.0,0.00013699,2]
[404745955,1770501129108,500.0,0.00013699,2]
[404745957,1770501250872,1211.06789028,0.000159,2]
[404745958,1770501681722,-469.24581288,0.00016475,2]
[404745961,1770501834699,364.57613018,0.00029892,120]
[404745962,1770501964892,500.0,0.00013699,2]
[404745978,1770502231840,-654.0,0.00016115,2]
[404745979,1770502231850,-53.5660661,0.00016295,2]
[404745980,1770502231861,-96.4339339,0.00016295,2]
[404745981,1770502231872,-177.0,0.00018295,2]
[404745982,1770502231882,-168.95158523,0.00018506,2]
[404745983,1770502231891,-304.11285342,0.00018506,2]
[404745984,1770502231901,-391.21653866,0.00018506,2]
[404745985,1770502231910,-6960.18737452,0.00018673,2]
[404745994,1770502237818,-4090.71677616,0.00018673,2]
[404745995,1770502237830,-300.0,0.00018874,2]
[404745996,1770502237840,-300.0,0.00018874,2]
[404745997,1770502237850,-300.0,0.00018874,2]
[404745998,1770502237861,-300.0,0.00018874,2]
[404745999,1770502237871,-300.0,0.00018874,2]
[404746000,1770502237882,-300.0,0.00018874,2]
[404746001,1770502237892,-300.0,0.00018874,2]
[404746002,1770502237903,-300.0,0.00018874,2]
[404746003,1770502237912,-300.0,0.00018874,2]
[404746004,1770502237921,-300.0,0.00018874,2]
[404746005,1770502237931,-300.0,0.00018874,2]
[404746006,1770502237941,-300.0,0.00018874,2]
[404746007,1770502237952,-300.0,0.00018874,2]
[404746008,1770502237963,-300.0,0.00018874,2]
[404746009,1770502237973,-300.0,0.00018874,2]
[404746010,1770502237983,-540.64507275,0.00019057,2]
[404746011,1770502237993,-447.10461561,0.00019068,2]
[404746012,1770502238003,-469.24581288,0.00019249,2]
[404746013,1770502238013,-600.0,0.0001925,2]
[404746014,1770502238023,-254.32296786,0.00020209,5]
[404746015,1770502238033,-210.32092683,0.00020223,5]
[404746016,1770502238042,-224.98283345,0.0002026,2]
[404746017,1770502238052,-500.0,0.0002026,2]
[404746018,1770502238061,-204.0,0.00020295,2]
[404746019,1770502238071,-239.5592727,0.0002045,2]
[404746020,1770502238081,-1000.0,0.0002076,2]
[404746021,1770502238090,-720.0,0.00021176,10]
[404746022,1770502238099,-770.8083547,0.0002141,2]
[404746023,1770502238109,-206.851088,0.00021591,2]
[404746024,1770502238118,-500.0,0.00021918,2]
[404746025,1770502238128,-276.24,0.00022273,2]
[404746026,1770502238137,-231.0,0.00022295,2]
[404746027,1770502238146,-187.131378,0.00022373,2]
[404746028,1770502238156,-240.41916453,0.00022771,2]
[404746029,1770502238165,-447.62789935,0.00022771,2]
[404746030,1770502238174,-1030.322026,0.00022773,2]
[404746031,1770502238183,-900.0,0.00023166,2]
[404746032,1770502238193,-500.0,0.00023288,2]
[404746033,1770502238202,-900.0,0.00023288,2]
[404746034,1770502238211,-479.987812,0.00023292,30]
[404746035,1770502238222,-864.0,0.00023293,10]
[404746036,1770502238231,-900.0,0.00023299,2]
[404746037,1770502238241,-150.0,0.00023303,30]
[404746038,1770502238250,-351.219239,0.00023303,30]
[404746039,1770502238259,-552.438478,0.00023303,30]
[404746040,1770502238269,-753.657717,0.00023303,30]
[404746041,1770502238279,-954.876956,0.00023303,30]
[404746042,1770502238288,-1156.096196,0.00023303,30]
[404746043,1770502238298,-1357.315435,0.00023303,30]
[404746044,1770502238308,-1558.534674,0.00023303,30]
[404746045,1770502238317,-1759.753913,0.00023303,30]
[404746046,1770502238327,-1960.973153,0.00023303,30]
[404746047,1770502238337,-900.0,0.00023324,2]
[404746048,1770502238346,-900.0,0.00023353,2]
[404746049,1770502238356,-615.647163,0.00023368,30]
[404746050,1770502238365,-936.526503,0.00023372,30]
[404746051,1770502238375,-150.0,0.00023372,30]
[404746052,1770502238384,-326.041865,0.00023372,30]
[404746053,1770502238393,-502.083731,0.00023372,30]
[404746054,1770502238403,-678.125597,0.00023372,30]
[404746055,1770502238413,-854.167462,0.00023372,30]
[404746056,1770502238423,-1030.209328,0.00023372,30]
[404746057,1770502238432,-1206.251194,0.00023372,30]
[404746058,1770502238442,-1382.29306,0.00023372,30]
[404746059,1770502238451,-1558.334925,0.00023372,30]
[404746060,1770502238461,-1734.376791,0.00023372,30]
[404746061,1770502238470,-500.0,0.00023383,2]
[404746062,1770502238480,-194.72792766,0.00023386,2]
[404746063,1770502238490,-201.93286099,0.00023386,2]
[404746064,1770502238499,-1000.0,0.00023386,2]
[404746065,1770502238509,-209.40437684,0.00023386,2]
[404746066,1770502238518,-1000.0,0.00023386,2]
[404746067,1770502238527,-217.15233878,0.00023386,2]
[404746068,1770502238536,-1000.0,0.00023386,2]
[404746069,1770502238546,-225.18697532,0.00023386,2]
[404746070,1770502238555,-1000.0,0.00023386,2]
[404746071,1770502238566,-233.51889341,0.00023386,2]
[404746072,1770502238575,-637.38780442,0.00023386,2]
[404746073,1770502238588,-362.61219558,0.00023386,2]
[404746074,1770502238598,-242.15909246,0.00023386,2]
[404746075,1770502238607,-1000.0,0.00023386,2]
[404746076,1770502238617,-251.11897888,0.00023386,2]
[404746077,1770502238630,-378.42560737,0.00023386,2]
[404746078,1770502238640,-165.85066068,0.00023386,2]
[404746079,1770502238650,-250.0,0.00023386,2]
[404746080,1770502238659,-250.0,0.00023386,2]
[404746081,1770502238668,-250.0,0.00023386,2]
[404746082,1770502238677,-250.0,0.00023386,2]
[404746083,1770502238686,-250.0,0.00023386,2]
[404746084,1770502238696,-250.0,0.00023386,2]
[404746085,1770502238706,-250.0,0.00023386,2]
[404746086,1770502238715,-250.0,0.00023386,2]
[404746087,1770502238725,-250.0,0.00023386,2]
[404746088,1770502238736,-250.0,0.00023386,2]
[404746089,1770502238745,-250.0,0.00023386,2]
[404746090,1770502238755,-500.0,0.00023407,2]
[404746091,1770502238766,-900.0,0.00023411,2]
[404746092,1770502238777,-500.0,0.00023411,2]
[404746093,1770502238787,-600.0,0.00023443,2]
[404746094,1770502238797,-500.0,0.00023444,2]
[404746095,1770502238808,-185.754853,0.00023462,2]
[404746096,1770502238817,-900.0,0.00023482,2]
[404746097,1770502238965,-900.0,0.00023505,2]
[404746098,1770502238975,-900.0,0.0002351,2]
[404746099,1770502238984,-500.0,0.00023555,2]
[404746100,1770502238995,-372.18724757,0.00023561,2]
[404746257,1770502244506,-127.81275243,0.00023561,2]
[404746258,1770502244516,-128.38724757,0.00023567,2]
[404746260,1770502245811,-262.72629316,0.00023567,2]
[404746261,1770502395760,500.0,0.00013699,2]
[404746262,1770502395817,1000.0,0.00014247,2]
[404746263,1770502395857,1500.0,0.00014795,2]
[404746339,1770502505823,215.67000002,0.00013699,2]
[404746351,1770502526578,500.0,0.00013699,2]
[404746352,1770502526629,1000.0,0.00014247,2]
[404746353,1770502526683,202.16105981,0.00014795,2]
[404746398,1770502623342,304.73831557,0.00013699,2]
[404746399,1770502623594,500.0,0.00013699,2]
[404746400,1770502623647,209.53631024,0.00014247,2]
[404746480,1770502925340,1000.0,0.00014247,2]
[404746481,1770502925389,500.0,0.00014795,2]
[404746482,1770502925447,500.0,0.00013699,2]
[404746497,1770502944401,372.12538168,0.00015131,2]
[404746504,1770502983834,504.97347589,0.00013699,2]
[404746505,1770503038855,5000.0,0.000159,2]
[404746506,1770503046958,5000.0,0.000159,2]
[404746507,1770503055786,5000.0,0.000159,2]
[404746508,1770503078620,5000.0,0.000159,2]
[404746509,1770503100326,3273.78363285,0.000159,2]
[404746512,1770503170231,234.23557593,0.00013699,2]
[404746534,1770503264919,5000.0,0.000159,2]
[404746536,1770503344981,500.0,0.00013699,2]
[404746537,1770503345015,173.18089913,0.00014247,2]
[404746559,1770503431913,-444.54488708,0.0001612,2]
[404746560,1770503431924,-744.44204724,0.0001612,2]
[404746653,1770503452144,1244.44052318,0.000159,2]
[404746655,1770503481581,-654.0,0.0001612,2]
[404746656,1770503481811,-150.0,0.00016202,2]
[404746657,1770503481838,-271.77248079,0.00016287,2]
[404746658,1770503481852,-12.22751921,0.00016287,2]
[404746659,1770503481862,-641.77248079,0.00016288,2]
[404746660,1770503481873,-150.0,0.00016288,2]
[404746661,1770503481888,-284.0,0.00016288,2]
[404746662,1770503482401,5000.0,0.000159,2]
[404746695,1770503584017,301.54490954,0.00013699,2]
[404746705,1770503648031,591.30697883,0.00013273,2]
[404746706,1770503648076,500.0,0.00013273,2]
[404746718,1770503698762,5000.0,0.000159,2]
[404746719,1770503720828,5000.0,0.000159,2]
[404746720,1770503723777,287.47357518,0.00013273,2]
[404746722,1770503743215,322.77587786,0.000159,2]
[404746752,1770504066892,408.55432392,0.00013699,2]
[404746822,1770504632244,-150.0,0.0001716,2]
[404746823,1770504632254,-200.0,0.00018113,2]
[404746824,1770504632264,-177.0,0.0001916,2]
[404746825,1770504632274,-102.12,0.00021065,2]
[404746826,1770504632286,-78.470443,0.00021065,2]
[404746827,1770504632296,-204.0,0.0002116,2]
[404746828,1770504632305,-37.759557,0.0002116,2]
[404746829,1770504632317,-295.09052318,0.0002116,2]
[404746928,1770505319899,-1958.59553922,0.00020327,2]
[404746929,1770505319927,-684.06944045,0.00020532,2]
[404746950,1770505349199,-46.93055955,0.00020532,2]
[404746951,1770505349259,-491.12001809,0.00020532,2]
[404747044,1770505832323,-592.36536678,0.00019923,2]
[404747048,1770505832382,-379.735,0.00019923,2]
[404747049,1770505832394,-347.875,0.00019923,2]
[404747050,1770505832405,-544.42071765,0.00019923,2]
[404747056,1770505838519,-3135.60391557,0.00019923,2]
[404747057,1770505838529,-1644.0627511,0.00020379,2]
[404747058,1770505838540,-8442.08398029,0.00020379,2]
[404747059,1770505838550,-150.0,0.0002038,2]
[404747060,1770505838559,-418.42040005,0.00020948,2]
[404747061,1770505838568,-950.1269561,0.0002142,2]
[404747062,1770505838579,-502.82226723,0.00021484,2]
[404747093,1770505846441,-150.0,0.00020151,2]
[404747094,1770505846452,-332.26051889,0.00020948,2]
[404747095,1770505846462,-867.39800917,0.00021484,2]
[404747096,1770505846471,-844.23694484,0.00021539,2]
[404747097,1770505846554,-155.76305516,0.00021539,2]
[404747098,1770505846565,-177.0,0.00022151,2]
[404747099,1770505846574,-500.0,0.00022711,2]
[404747100,1770505846584,-500.0,0.00022711,2]
[404747101,1770505846594,-500.0,0.00022711,2]
[404747102,1770505846604,-447.39523271,0.00022711,2]
[404747103,1770505846617,-1000.0,0.00022712,2]
[404747104,1770505846627,-1000.0,0.00022712,2]
[404747105,1770505846637,-1000.0,0.00022712,2]
[404747106,1770505846647,-1000.0,0.00022712,2]
[404747107,1770505846656,-1000.0,0.00022712,2]
[404747108,1770505846666,-1000.0,0.00022712,2]
[404747109,1770505846675,-1000.0,0.00022712,2]
[404747110,1770505846684,-1000.0,0.00022712,2]
[404747111,1770505846695,-1000.0,0.00022712,2]
[404747112,1770505846706,-730.08171213,0.00022712,2]
[404747247,1770506884939,948.80464105,0.000125,2]
[404747278,1770507037689,-5000.0,0.00019625,2]
[404747279,1770507037699,-15148.92081555,0.00019823,2]
[404747280,1770507037709,-10513.36248934,0.00019823,2]
[404747281,1770507037718,-747.58975031,0.00019823,2]
[404747282,1770507037728,-720.0,0.00019923,2]
[404747283,1770507037737,-300.0,0.00020302,2]
[404747284,1770507037746,-300.0,0.00020302,2]
[404747285,1770507037756,-300.0,0.00020302,2]
[404747286,1770507037766,-1200.0,0.00020302,2]
[404747287,1770507037775,-150.0,0.00020303,2]
[404747288,1770507037785,-500.0,0.00020481,2]
[404747289,1770507037794,-500.0,0.00020481,2]
[404747290,1770507037804,-500.0,0.00020481,2]
[404747291,1770507037813,-500.0,0.00020481,2]
[404747292,1770507037822,-500.0,0.00020481,2]
[404747293,1770507037832,-117.09268339,0.00020481,2]
[404747427,1770507041025,-382.90731661,0.00020481,2]
[404747429,1770507041034,-500.0,0.00020481,2]
[404747431,1770507041043,-500.0,0.00020481,2]
[404747432,1770507041053,-576.38576288,0.00020481,2]
[404747434,1770507041063,-500.0,0.00020481,2]
[404747436,1770507041072,-500.0,0.00020481,2]
[404747438,1770507041081,-500.0,0.00020481,2]
[404747441,1770507041092,-500.0,0.00020481,2]
[404747443,1770507041102,-421.88222071,0.00020481,2]
[404747445,1770507041117,-158.69561697,0.00020481,2]
[404747447,1770507041127,-490.39438303,0.00020481,2]
[404747450,1770507041139,-9.60561697,0.00020481,2]
[404747452,1770507041147,-490.39438303,0.00020481,2]
[404747903,1770507045600,-9.60561697,0.00020481,2]
[404747906,1770507045618,-500.0,0.00020481,2]
[404747908,1770507045630,-500.0,0.00020481,2]
[404747910,1770507045640,-313.57098559,0.00020481,2]
[404747912,1770507045649,-456.61546377,0.00020481,2]
[404747921,1770507045718,-43.38453623,0.00020481,2]
[404747923,1770507045727,-258.61546377,0.00020742,2]
[404747985,1770507046357,-241.38453623,0.00020742,2]
[404747987,1770507046367,-500.0,0.00020742,2]
[404747989,1770507046376,-235.2095456,0.00020902,2]
[404747991,1770507046387,-3871.2454393,0.00021265,2]